fUST/lending_fUST_20241014
["ID","MTS","AMOUNT","RATE_DAILY","PERIOD"]
[340203261,1728835422061,152.0,0.00022,120]
[340203265,1728835805778,166.666666,0.00024596,2]
[340203364,1728835840388,-300.0,0.00025263,2]
[340203365,1728835840400,-300.0,0.00025263,2]
[340203366,1728835840411,-24900.0,0.00025264,2]
[340203367,1728835840422,-166.666666,0.00025266,2]
[340203368,1728835840433,-250.0,0.00025509,2]
[340203369,1728835840443,-250.0,0.00025579,2]
[340203370,1728835840454,-250.0,0.00025649,2]
[340203371,1728835840464,-250.0,0.00025719,2]
[340203372,1728835840473,-250.0,0.00025789,2]
[340203373,1728835840483,-250.0,0.00025859,2]
[340203374,1728835840493,-250.0,0.00025929,2]
[340203375,1728835840504,-166.666666,0.00025937,2]
[340203376,1728835840514,-250.0,0.00025999,2]
[340203377,1728835840525,-250.0,0.00026069,2]
[340203378,1728835840534,-250.0,0.00026139,2]
[340203379,1728835840544,-250.0,0.00026208,2]
[340203380,1728835840554,-250.0,0.00026278,2]
[340203381,1728835840564,-250.0,0.00026348,2]
[340203382,1728835840574,-250.0,0.00026418,2]
[340203383,1728835840583,-250.0,0.00026488,2]
[340203384,1728835840592,-250.0,0.00026558,2]
[340203385,1728835840601,-166.666666,0.00026607,2]
[340203386,1728835840610,-250.0,0.00026628,2]
[340203387,1728835840620,-250.0,0.00026698,2]
[340203388,1728835840634,-250.0,0.00026768,2]
[340203389,1728835840644,-250.0,0.00026838,2]
[340203390,1728835840654,-210.1513438,0.00026849,2]
[340203391,1728835840663,-820.1646848,0.00026849,2]
[340203392,1728835840673,-210.1513438,0.00026849,2]
[340203393,1728835840683,-210.1513438,0.00026849,2]
[340203394,1728835840693,-413.7492508,0.00026849,2]
[340203395,1728835840702,-210.1513438,0.00026849,2]
[340203396,1728835840711,-413.7492508,0.00026849,2]
[340203397,1728835840722,-413.7492508,0.00026849,2]
[340203398,1728835840731,-232.1427135,0.00026849,2]
[340203399,1728835840741,-827.4985016,0.00026849,2]
[340203400,1728835840753,-210.0488919,0.00026849,2]
[340203401,1728835840764,-156.5018462,0.00026849,2]
[340203402,1728835840773,-210.0488919,0.00026849,2]
[340203403,1728835840783,-429.1959659,0.00026849,2]
[340203404,1728835840793,-413.7492508,0.00026849,2]
[340203405,1728835840803,-210.0488919,0.00026849,2]
[340203406,1728835840812,-210.0488919,0.00026849,2]
[340203407,1728835840821,-413.7492508,0.00026849,2]
[340203408,1728835840832,-355.9000898,0.0002688,2]
[340203409,1728835840841,-1000.0,0.0002688,2]
[340203410,1728835840850,-1080.18,0.0002697,10]
[340203411,1728835840860,-2059.84,0.0002697,10]
[340203412,1728835840871,-1716.53,0.0002697,10]
[340203413,1728835840884,-1430.44,0.0002697,10]
[340203414,1728835840895,-500.0,0.00026973,2]
[340203415,1728835840905,-152.61581036,0.00026979,2]
[340203416,1728835840916,-316.87,0.0002698,3]
[340203417,1728835840927,-104552.7416687,0.0002698,4]
[340203418,1728835840942,-5423.23904584,0.0002698,4]
[340203419,1728835840956,-12304.81153383,0.0002698,4]
[340203430,1728835843442,-1192.04,0.0002697,10]
[340203431,1728835843452,-7172.75907927,0.0002698,4]
[340203468,1728836501212,152.0,0.00022,120]
[340203471,1728836742929,164.392498,0.00023822,2]
[340203476,1728836874818,241.1281657,0.00023,2]
[340203477,1728836907658,166.666666,0.00023265,2]
[340203478,1728836907919,166.666666,0.00023899,2]
[340203479,1728836919585,3215.11381928,0.00014,4]
[340203480,1728836919741,44912.5112374,0.00022,30]
[340203482,1728836926014,500.0,0.00024,2]
[340203487,1728836961752,1504.1186484,0.0002366,2]
[340203488,1728836971107,-250.0,0.00024356,2]
[340203489,1728836971128,-250.0,0.00024422,2]
[340203490,1728836971148,-300.0,0.00024477,2]
[340203491,1728836971169,-7162.40588249,0.00024478,2]
[340203617,1728837038847,-300.0,0.00024477,2]
[340203618,1728837038858,-300.0,0.00024477,2]
[340203619,1728837038869,-14662.59735143,0.00024478,2]
[340203620,1728837038882,-658.50612679,0.00024478,2]
[340203621,1728837038894,-2416.49063929,0.00024478,2]
[340203622,1728837038906,-250.0,0.00024489,2]
[340203623,1728837038915,-166.666666,0.00024534,2]
[340203624,1728837038925,-250.0,0.00024556,2]
[340203625,1728837038934,-250.0,0.00024623,2]
[340203626,1728837038944,-660.0,0.00024658,2]
[340203627,1728837038955,-250.0,0.00024689,2]
[340203628,1728837038966,-250.0,0.00024756,2]
[340203629,1728837038976,-250.0,0.00024823,2]
[340203630,1728837038986,-250.0,0.0002489,2]
[340203631,1728837038996,-355.9000898,0.000249,2]
[340203632,1728837039006,-250.0,0.00024957,2]
[340203633,1728837039016,-316.87,0.0002499,3]
[340203634,1728837039027,-847.65,0.0002499,10]
[340203635,1728837039037,-1899.92,0.0002499,10]
[340203636,1728837039048,-1583.27,0.0002499,10]
[340203637,1728837039058,-152.61581036,0.00024999,2]
[340203638,1728837039069,-2844.8836846,0.00025,7]
[340203659,1728837040603,-808.88059479,0.00025,7]
[340203660,1728837040616,-809.96960681,0.00025,7]
[340203661,1728837040627,-361.06796945,0.00025,7]
[340203662,1728837040639,-54005.13556241,0.00025,7]
[340203663,1728837040648,-43434.95723162,0.00025,7]
[340203664,1728837040660,-1000.0,0.00025,2]
[340203665,1728837040669,-114738.69796248,0.00025,2]
[340203666,1728837040680,-13999.57753854,0.00025,2]
[340203667,1728837040691,-183047.1093643,0.00025,2]
[340203668,1728837040703,-45168.25336977,0.00025,2]
[340203669,1728837040712,-1028.23619174,0.00025,2]
[340203688,1728837043595,-2284.08925962,0.00025,2]
[340203689,1728837043607,-1325.81357195,0.00025,2]
[340203690,1728837043757,-3533.40470596,0.00025,2]
[340203691,1728837043771,-1754.8937024,0.00025,2]
[340203705,1728837046685,-6072.0055767,0.00025,2]
[340203706,1728837080014,5000.0,0.00024001,2]
[340203707,1728837088465,1820.2590898,0.00024001,2]
[340203708,1728837097228,1567.73518563,0.00024001,2]
[340203711,1728837149245,2119.42427399,0.00024001,2]
[340203712,1728837179592,24900.0,0.00023999,2]
[340203713,1728837195173,566.846016,0.00023999,2]
[340203719,1728837357075,250.0,0.00023957,2]
[340203721,1728837516543,152.0,0.00022,120]
[340203722,1728837568208,166.666666,0.00023317,2]
[340203723,1728837569552,166.666666,0.00023953,2]
[340203726,1728837725171,3000.0,0.00023696,2]
[340203727,1728837787070,377.897344,0.00023701,2]
[340203731,1728837929845,24900.0,0.00023681,2]
[340203734,1728837996135,-250.0,0.00024137,2]
[340203735,1728837996163,-250.0,0.00024203,2]
[340203736,1728837996185,-250.0,0.00024269,2]
[340203737,1728837996207,-250.0,0.00024335,2]
[340203738,1728837996229,-458.85164741,0.00024377,2]
[340203739,1728837996251,-377.897344,0.00024386,2]
[340203740,1728837996273,-250.0,0.00024401,2]
[340203741,1728837996294,-250.0,0.00024468,2]
[340203742,1728837996315,-250.0,0.00024534,2]
[340203743,1728837996336,-166.666666,0.00024588,2]
[340203744,1728837996357,-250.0,0.000246,2]
[340203745,1728837996378,-660.0,0.00024658,2]
[340203746,1728837996400,-250.0,0.00024666,2]
[340203747,1728837996421,-3552.47448271,0.00024711,2]
[340203749,1728838040102,-153.77540887,0.00024558,2]
[340203750,1728838040124,-1561.67838297,0.00024711,2]
[340203751,1728838050097,-1290.62102771,0.00024711,2]
[340203752,1728838050121,-250.0,0.00024732,2]
[340203753,1728838050147,-250.0,0.00024799,2]
[340203754,1728838050171,-250.0,0.00024865,2]
[340203755,1728838050194,-953.51746068,0.00024897,2]
[340203756,1728838092770,166.666666,0.00023573,2]
[340203758,1728838154120,-250.0,0.00024129,2]
[340203759,1728838154150,-250.0,0.00024195,2]
[340203760,1728838154178,-166.666666,0.00024216,2]
[340203761,1728838154203,-250.0,0.00024261,2]
[340203762,1728838154227,-250.0,0.00024327,2]
[340203764,1728838222932,3815.499,0.00024001,2]
[340203814,1728838232701,-250.0,0.00024393,2]
[340203816,1728838232710,-250.0,0.00024459,2]
[340203818,1728838232720,-250.0,0.00024526,2]
[340203820,1728838232729,-250.0,0.00024592,2]
[340203822,1728838232742,-250.0,0.00024658,2]
[340203824,1728838232751,-250.0,0.00024724,2]
[340203826,1728838232761,-250.0,0.0002479,2]
[340203828,1728838232770,-250.0,0.00024856,2]
[340203830,1728838232780,-166.666666,0.00024858,2]
[340203832,1728838232790,-250.0,0.00024923,2]
[340203835,1728838232801,-300.0,0.00024966,2]
[340203837,1728838232812,-300.0,0.00024966,2]
[340203839,1728838232821,-1319.39,0.00024967,10]
[340203841,1728838232830,-500.0,0.00024973,2]
[340203843,1728838232839,-500.0,0.00024973,2]
[340203845,1728838232848,-500.0,0.00024973,2]
[340203847,1728838232858,-204.99421476,0.00024977,2]
[340203849,1728838232866,-19055.41923111,0.00024977,3]
[340203948,1728838240765,-2020.47,0.00024967,10]
[340203949,1728838240776,-31367.48372099,0.00024977,3]
[340203950,1728838240785,-122923.424023,0.00024977,3]
[340203951,1728838240795,-132000.64553255,0.00024987,2]
[340203952,1728838240806,-250.0,0.00024989,2]
[340203953,1728838240818,-29414.96870903,0.0002499,7]
[340203954,1728838240830,-21717.47861581,0.0002499,7]
[340203955,1728838240842,-100845.805904,0.0002499,3]
[340203956,1728838240853,-138057.82265953,0.0002499,3]
[340203957,1728838240864,-14617.76219143,0.0002499,3]
[340203958,1728838240875,-3136.7497176,0.0002499,3]
[340203981,1728838244063,-829.5433489,0.0002499,3]
[340203993,1728838246672,-9575.44972375,0.0002499,3]
[340203994,1728838296549,188.948672,0.00023995,2]
[340203999,1728838439025,24900.0,0.00023987,2]
[340204000,1728838529988,152.0,0.00022,120]
[340204003,1728838626859,166.666666,0.00023576,2]
[340204005,1728838832633,-250.0,0.00024142,2]
[340204006,1728838832659,-250.0,0.00024209,2]
[340204007,1728838832686,-166.666666,0.00024219,2]
[340204008,1728838832711,-250.0,0.00024275,2]
[340204009,1728838832735,-250.0,0.00024341,2]
[340204010,1728838832759,-250.0,0.00024407,2]
[340204011,1728838832784,-250.0,0.00024473,2]
[340204012,1728838832809,-250.0,0.0002454,2]
[340204013,1728838832832,-429.1135517,0.000246,2]
[340204014,1728838832855,-210.1513438,0.000246,2]
[340204015,1728838832879,-250.0,0.00024606,2]
[340204016,1728838832902,-250.0,0.00024672,2]
[340204017,1728838832926,-250.0,0.00024738,2]
[340204018,1728838832953,-250.0,0.00024805,2]
[340204019,1728838832978,-300.0,0.0002482,2]
[340204020,1728838833001,-300.0,0.0002482,2]
[340204021,1728838833023,-166.666666,0.00024862,2]
[340204022,1728838833047,-250.0,0.00024871,2]
[340204023,1728838833070,-523.27673943,0.0002489,2]
[340204024,1728838833093,-3009.18854924,0.0002489,2]
[340204025,1728838833117,-250.0,0.00024937,2]
[340204026,1728838833140,-2132.92,0.0002497,10]
[340204027,1728838833164,-492.95760539,0.00024973,2]
[340204028,1728838833187,-294.537,0.00024979,8]
[340204029,1728838833210,-500.0,0.00024979,2]
[340204030,1728838833234,-500.0,0.00024979,2]
[340204031,1728838833258,-500.0,0.00024979,2]
[340204032,1728838833282,-500.0,0.00024979,2]
[340204033,1728838833305,-500.0,0.00024979,2]
[340204034,1728838833328,-500.0,0.00024979,2]
[340204035,1728838833352,-252.26264918,0.00024979,2]
[340204036,1728838833375,-500.0,0.00024979,2]
[340204037,1728838833398,-394.31186318,0.00024979,2]
[340204038,1728838833421,-500.0,0.00024979,2]
[340204039,1728838833445,-348.31274578,0.00024979,2]
[340204040,1728838833467,-194.06091182,0.00024979,8]
[340204041,1728838833491,-277.91452013,0.00024979,2]
[340204042,1728838833515,-224849.701636,0.0002498,3]
[340204043,1728838833539,-419389.178955,0.0002498,3]
[340204044,1728838833571,-29414.96870903,0.0002499,7]
[340204045,1728838833594,-21717.47861581,0.0002499,7]
[340204046,1728838833618,-151.0,0.0002499,7]
[340204047,1728838833642,-151.0,0.0002499,7]
[340204048,1728838833664,-227.732254,0.0002499,7]
[340204049,1728838833688,-564.411084,0.0002499,7]
[340204050,1728838833712,-564.411084,0.0002499,7]
[340204051,1728838833735,-151.0,0.0002499,7]
[340204052,1728838833759,-164.077652,0.0002499,7]
[340204053,1728838833783,-164.077652,0.0002499,7]
[340204054,1728838833888,-151.0,0.0002499,7]
[340204055,1728838833911,-171.425122,0.0002499,7]
[340204056,1728838833936,-171.425122,0.0002499,7]
[340204057,1728838833971,-151.0,0.0002499,7]
[340204058,1728838833998,-420.847232,0.0002499,7]
[340204059,1728838834023,-420.847232,0.0002499,7]
[340204060,1728838834047,-8312.07683851,0.0002499,3]
[340204061,1728838850105,736.644865,0.00023866,2]
[340204062,1728838856522,505.7278175,0.00023813,2]
[340204063,1728838868892,151.0,0.00022,120]
[340204065,1728838912848,164.392498,0.00023448,2]
[340204066,1728838913382,-6581.36044619,0.00024091,2]
[340204067,1728838913407,-300.0,0.00024283,2]
[340204068,1728838913431,-300.0,0.00024283,2]
[340204069,1728838913456,-6581.36044619,0.00024284,2]
[340204070,1728838913481,-6581.36044619,0.00024483,2]
[340204071,1728838913504,-736.644865,0.00024551,2]
[340204072,1728838913530,-622.95708376,0.0002489,2]
[340204073,1728838913555,-6581.36044619,0.00024896,2]
[340204074,1728838913580,-500.0,0.00024973,2]
[340204075,1728838913602,-500.0,0.00024973,2]
[340204076,1728838913629,-500.0,0.00024979,2]
[340204077,1728838913653,-500.0,0.00024979,2]
[340204078,1728838913678,-500.0,0.00024979,2]
[340204079,1728838913703,-500.0,0.00024979,2]
[340204080,1728838913729,-222.32986331,0.00024979,2]
[340204081,1728838913756,-500.0,0.00024979,2]
[340204082,1728838913783,-500.0,0.00024979,2]
[340204083,1728838913807,-500.0,0.00024979,2]
[340204084,1728838913832,-500.0,0.00024979,2]
[340204085,1728838913856,-500.0,0.00024979,2]
[340204086,1728838913878,-500.0,0.00024979,2]
[340204087,1728838913900,-500.0,0.00024979,2]
[340204088,1728838914017,-500.0,0.00024979,2]
[340204089,1728838914042,-500.0,0.00024979,2]
[340204090,1728838914066,-500.0,0.00024979,2]
[340204091,1728838914090,-500.0,0.00024979,2]
[340204092,1728838914114,-500.0,0.00024979,2]
[340204093,1728838914141,-500.0,0.00024979,2]
[340204094,1728838914174,-500.0,0.00024979,2]
[340204095,1728838914200,-412.9250782,0.00024979,2]
[340204096,1728838914227,-592.51979599,0.00024979,2]
[340204097,1728838914254,-500.0,0.00024979,2]
[340204098,1728838914278,-500.0,0.00024979,2]
[340204099,1728838914304,-500.0,0.00024979,2]
[340204100,1728838914330,-500.0,0.00024979,2]
[340204101,1728838914353,-500.0,0.00024979,2]
[340204102,1728838914376,-500.0,0.00024979,2]
[340204103,1728838914400,-500.0,0.00024979,2]
[340204104,1728838914422,-500.0,0.00024979,2]
[340204105,1728838914445,-500.0,0.00024979,2]
[340204106,1728838914469,-500.0,0.00024979,2]
[340204107,1728838914496,-500.0,0.00024979,2]
[340204108,1728838914523,-500.0,0.00024979,2]
[340204109,1728838914549,-500.0,0.00024979,2]
[340204110,1728838914574,-500.0,0.00024979,2]
[340204111,1728838914599,-500.0,0.00024979,2]
[340204112,1728838914625,-500.0,0.00024979,2]
[340204113,1728838914649,-500.0,0.00024979,2]
[340204114,1728838914678,-500.0,0.00024979,2]
[340204115,1728838914702,-500.0,0.00024979,2]
[340204116,1728838914726,-235.05878114,0.00024979,2]
[340204117,1728838914754,-500.0,0.00024979,2]
[340204118,1728838914786,-500.0,0.00024979,2]
[340204119,1728838914822,-839.39,0.0002498,3]
[340204120,1728838914858,-419.69,0.0002498,3]
[340204121,1728838914892,-209.85,0.0002498,3]
[340204122,1728838914929,-3798.92,0.0002498,10]
[340204123,1728838914963,-629.57,0.0002498,3]
[340204124,1728838914998,-3165.76,0.0002498,10]
[340204125,1728838915030,-435.82545444,0.00024989,2]
[340204126,1728838915059,-500.0,0.00024989,2]
[340204127,1728838915092,-500.0,0.00024989,2]
[340204128,1728838915125,-507.29186015,0.00024989,2]
[340204129,1728838915158,-308.44622786,0.00024989,2]
[340204130,1728838915185,-326.95433091,0.00024989,2]
[340204131,1728838915217,-475.09225187,0.00024989,2]
[340204132,1728838915246,-500.0,0.00024989,2]
[340204133,1728838915277,-500.0,0.00024989,2]
[340204134,1728838915306,-500.0,0.00024989,2]
[340204135,1728838915333,-500.0,0.00024989,2]
[340204136,1728838915362,-444.08325418,0.00024989,2]
[340204137,1728838915390,-499.99999999,0.00024989,2]
[340204138,1728838915419,-154.92354036,0.00024989,2]
[340204139,1728838915452,-141587.72425149,0.0002499,3]
[340204140,1728838915484,-139796.392985,0.0002499,3]
[340204141,1728838915515,-151.0,0.0002499,7]
[340204142,1728838915548,-151.0,0.0002499,7]
[340204143,1728838915577,-151.0,0.0002499,7]
[340204144,1728838915606,-151.0,0.0002499,7]
[340204145,1728838915648,-151.0,0.0002499,7]
[340204146,1728838915690,-151.0,0.0002499,7]
[340204147,1728838915726,-151.0,0.0002499,7]
[340204148,1728838915856,-151.0,0.0002499,7]
[340204149,1728838915910,-975.57457074,0.00024999,2]
[340204150,1728838915936,-441.63402085,0.00025,2]
[340204151,1728838950420,24900.0,0.00023982,2]
[340204152,1728838950830,171.0,0.00022,2]
[340204153,1728838951250,171.0,0.00023014,2]
[340204154,1728838956228,6719.30312838,0.000233,2]
[340204155,1728838956624,6719.30312838,0.0002377,2]
[340204156,1728838967780,-6719.30312838,0.00024022,2]
[340204157,1728838967806,-150.0,0.0002415,2]
[340204158,1728838967830,-6719.30312838,0.00024275,2]
[340204159,1728838967852,-150.80018939,0.00024383,2]
[340204160,1728838967873,-6719.30312838,0.00024458,2]
[340204161,1728838967894,-6719.30312838,0.00024797,2]
[340204162,1728838967917,-500.0,0.00024973,2]
[340204163,1728838967939,-361.5471361,0.00024973,2]
[340204164,1728838967961,-500.0,0.00024973,2]
[340204165,1728838967982,-298.859879,0.0002499,7]
[340204166,1728838968004,-298.859879,0.0002499,7]
[340204167,1728838968026,-244.82,0.0002499,3]
[340204168,1728838968052,-1907.71,0.0002499,10]
[340204169,1728838968074,-300.0,0.00024999,2]
[340204170,1728838968099,-300.0,0.00024999,2]
[340204171,1728838968121,-160.45369491,0.00024999,2]
[340204172,1728838968144,-500.0,0.00024999,2]
[340204173,1728838968169,-500.0,0.00024999,2]
[340204174,1728838968195,-156.99167536,0.00024999,2]
[340204175,1728838968218,-500.0,0.00024999,2]
[340204176,1728838968242,-423.50587811,0.00024999,2]
[340204177,1728838968263,-58263.96685519,0.00025,2]
[340204178,1728838968284,-13083.27229942,0.00025,2]
[340204180,1728839051372,171.0,0.00022,2]
[340204186,1728839197056,166.666666,0.00023657,2]
[340204187,1728839228130,-2028.63836886,0.00024247,2]
[340204188,1728839253110,-3166.37067479,0.00024247,2]
[340204189,1728839353104,-250.0,0.00024124,2]
[340204190,1728839353126,-250.0,0.0002419,2]
[340204191,1728839353147,-250.0,0.00024256,2]
[340204192,1728839353166,-166.666666,0.00024302,2]
[340204193,1728839353187,-73.88271156,0.00024322,2]
[340204194,1728839362111,-176.11728844,0.00024322,2]
[340204196,1728839402852,245.548288,0.00023847,2]
[340204224,1728839431817,-250.0,0.00024388,2]
[340204226,1728839431827,-250.0,0.00024455,2]
[340204228,1728839431836,-250.0,0.00024521,2]
[340204230,1728839431846,-16.41726329,0.00024532,2]
[340204245,1728839437891,-229.13102471,0.00024532,2]
[340204246,1728839437901,-250.0,0.00024587,2]
[340204247,1728839437910,-250.0,0.00024653,2]
[340204248,1728839437919,-300.0,0.00024718,2]
[340204249,1728839437931,-250.0,0.00024719,2]
[340204250,1728839437940,-250.0,0.00024785,2]
[340204251,1728839437950,-150.0,0.00024818,2]
[340204252,1728839437959,-250.0,0.00024852,2]
[340204253,1728839437968,-300.0,0.00024899,2]
[340204254,1728839437978,-122.58315823,0.000249,2]
[340204255,1728839438000,-4566.61127879,0.000249,2]
[340204256,1728839438010,-250.0,0.00024918,2]
[340204257,1728839438020,-166.666666,0.00024947,2]
[340204258,1728839438029,-250.0,0.00024984,2]
[340204259,1728839438038,-151.0,0.0002499,7]
[340204260,1728839438047,-151.0,0.0002499,7]
[340204261,1728839438057,-151.0,0.0002499,7]
[340204262,1728839438066,-370.43318885,0.00025,2]
[340204263,1728839438152,-1607.606259,0.00025,2]
[340204264,1728839438161,-8399.79,0.00025,14]
[340204265,1728839438170,-2144.42,0.00025,14]
[340204266,1728839438181,-3352.19,0.00025,14]
[340204267,1728839438191,-150.112233,0.00025,4]
[340204268,1728839438200,-151.0,0.00025,7]
[340204269,1728839438209,-151.0,0.00025,7]
[340204270,1728839438218,-154.596307,0.00025,7]
[340204271,1728839438226,-151.0,0.00025,7]
[340204272,1728839438235,-420.847232,0.00025,7]
[340204273,1728839438244,-420.847232,0.00025,7]
[340204274,1728839438253,-827.2076053,0.00025,2]
[340204275,1728839438261,-210.0488919,0.00025,2]
[340204276,1728839438271,-413.9247816,0.00025,2]
[340204277,1728839438279,-420.0977838,0.00025,2]
[340204278,1728839438288,-151.0,0.00025,7]
[340204279,1728839438297,-151.0,0.00025,7]
[340204280,1728839438306,-151.0,0.00025,7]
[340204281,1728839438316,-151.0,0.00025,7]
[340204282,1728839438326,-151.0,0.00025,7]
[340204283,1728839438335,-155.054588,0.00025,7]
[340204284,1728839438344,-298.859879,0.00025,7]
[340204285,1728839438353,-298.859879,0.00025,7]
[340204286,1728839438362,-151.0,0.00025,7]
[340204287,1728839438373,-151.0,0.00025,7]
[340204288,1728839438384,-151.0,0.00025,7]
[340204289,1728839438395,-250.0,0.0002505,2]
[340204290,1728839438405,-158.16731979,0.00025082,2]
[340204291,1728839438416,-500.0,0.00025083,2]
[340204292,1728839438426,-500.0,0.00025083,2]
[340204293,1728839438436,-250.0,0.00025116,2]
[340204294,1728839438445,-501.70662504,0.00025125,2]
[340204295,1728839438455,-505.05495484,0.00025125,2]
[340204296,1728839438464,-474.42897624,0.00025148,2]
[340204297,1728839438473,-505.12322668,0.0002515,2]
[340204298,1728839438483,-500.0,0.0002515,2]
[340204299,1728839438493,-250.0,0.00025182,2]
[340204300,1728839438503,-150.112233,0.000252,9]
[340204301,1728839438512,-452.1109548,0.00025205,2]
[340204302,1728839438521,-245.548288,0.00025217,2]
[340204303,1728839438530,-250.0,0.00025249,2]
[340204304,1728839438539,-471.67597361,0.0002526,2]
[340204305,1728839438548,-500.0,0.000253,2]
[340204306,1728839438558,-501.08183231,0.000253,2]
[340204307,1728839438568,-500.0,0.000253,2]
[340204308,1728839438579,-250.0,0.00025315,2]
[340204309,1728839438589,-250.0,0.00025381,2]
[340204310,1728839438598,-150.112233,0.000254,6]
[340204311,1728839438607,-361.205,0.00025501,2]
[340204312,1728839438615,-166.666666,0.00025592,2]
[340204313,1728839438625,-150.112233,0.000256,8]
[340204314,1728839438634,-150.112233,0.000257,6]
[340204315,1728839438643,-150.112233,0.000259,10]
[340204316,1728839438653,-1261.22276808,0.00026,2]
[340204317,1728839438663,-150.112233,0.000261,10]
[340204318,1728839438672,-166.666666,0.00026237,2]
[340204319,1728839438682,-150.112233,0.000263,5]
[340204320,1728839438691,-1000.0,0.00026342,2]
[340204321,1728839438701,-150.112233,0.000264,10]
[340204322,1728839438710,-1000.0,0.00026453,2]
[340204323,1728839438719,-150.112233,0.000265,5]
[340204324,1728839438728,-1000.0,0.0002652,2]
[340204325,1728839438737,-344.03995288,0.0002656,2]
[340204326,1728839438746,-500.0,0.0002656,2]
[340204327,1728839438755,-510.35270538,0.0002667,2]
[340204328,1728839438764,-1000.0,0.0002667,2]
[340204329,1728839438774,-224.42,0.00026687,3]
[340204330,1728839438783,-673.26,0.00026687,3]
[340204331,1728839438793,-3637.88,0.00026687,10]
[340204332,1728839438804,-215.9123595,0.00026696,2]
[340204333,1728839438814,-305.07781811,0.00026696,2]
[340204334,1728839438826,-500.0,0.00026696,2]
[340204335,1728839438837,-578.86803164,0.00026696,2]
[340204336,1728839438848,-355.1043021,0.00026696,2]
[340204337,1728839438861,-182.56457631,0.00026696,2]
[340204338,1728839438876,-12628.1897817,0.00026697,4]
[340204350,1728839440876,-53284.47343359,0.00026697,4]
[340204351,1728839440888,-4119.10071634,0.00026697,4]
[340204352,1728839440902,-390.00870413,0.00026697,4]
[340204353,1728839440954,-7100.37664958,0.00024483,2]
[340204354,1728839440964,-7100.37664958,0.0002486,2]
[340204355,1728839440977,-7100.37664958,0.00025281,2]
[340204356,1728839440989,-7100.37664958,0.00025574,2]
[340204357,1728839441001,-474.42897622,0.00025873,2]
[340204358,1728839441012,-77629.46060224,0.00026697,4]
[340204359,1728839441021,-209694.589477,0.00026697,4]
[340204360,1728839441031,-448.84,0.00026697,3]
[340204361,1728839441043,-150.112233,0.000267,9]
[340204362,1728839441054,-150.112233,0.000267,10]
[340204363,1728839441066,-150.112233,0.000267,5]
[340204364,1728839441077,-1000.0,0.00026707,2]
[340204365,1728839441088,-107760.49606648,0.00026707,2]
[340204366,1728839441100,-498.36566704,0.00026707,2]
[340204367,1728839441110,-500.0,0.00026773,2]
[340204368,1728839441119,-500.0,0.00026773,2]
[340204369,1728839441130,-500.0,0.00026773,2]
[340204370,1728839441140,-500.0,0.00026773,2]
[340204371,1728839441151,-151.0,0.0002679,7]
[340204372,1728839441163,-151.0,0.0002679,7]
[340204373,1728839441174,-151.0,0.0002679,7]
[340204374,1728839441186,-155.408013,0.0002679,7]
[340204375,1728839441195,-151.0,0.0002679,7]
[340204376,1728839441205,-151.0,0.0002679,7]
[340204377,1728839441215,-275.739137,0.0002679,7]
[340204378,1728839441226,-275.739137,0.0002679,7]
[340204379,1728839441236,-175.644652,0.0002679,7]
[340204380,1728839441245,-175.644652,0.0002679,7]